fUSD/lending_fUSD_20240210
["ID","MTS","AMOUNT","RATE_DAILY","PERIOD"]
[313664333,1707555065427,-510.23106088,0.00023088,7]
[313664334,1707555065438,-990.0,0.00023088,7]
[313664335,1707555065451,-268.22969236,0.00023088,7]
[313664336,1707555065463,-721.77030764,0.00023088,7]
[313664337,1707555065474,-990.0,0.00023088,7]
[313664338,1707555065484,-23.28642081,0.00023088,7]
[313664339,1707555065509,-966.71357919,0.00023088,7]
[313664340,1707555065520,-990.0,0.00023088,7]
[313664341,1707555065531,-62.47101981,0.00023088,7]
[313664342,1707555065544,-299.975,0.00023088,7]
[313664343,1707555067540,947.77,0.00023,2]
[313664344,1707555067820,1500.0,0.00022789,2]
[313664345,1707555067857,1310.26003759,0.0002277,2]
[313664346,1707555067994,500.0,0.00023,2]
[313664347,1707555069326,208.0,0.00023,2]
[313664348,1707555069468,5384.83,0.00023,2]
[313664349,1707555070911,500.0,0.00023,2]
[313664350,1707555071268,500.0,0.00023,2]
[313664351,1707555071373,1320237.66057651,0.00023,2]
[313664352,1707555071522,173075.89779923,0.00023,2]
[313664353,1707555071813,500.0,0.00023,7]
[313664354,1707555073602,500.0,0.00023,2]
[313664355,1707555073630,500.0,0.00023,2]
[313664356,1707555075911,523.21,0.00023,2]
[313664357,1707555076358,500.0,0.00023,2]
[313664358,1707555076602,500.0,0.00023,2]
[313664359,1707555076745,11249.14,0.00023,2]
[313664360,1707555077028,3910.32,0.00023,2]
[313664361,1707555078988,500.0,0.00023,2]
[313664362,1707555079025,307.76576693,0.00023,2]
[313664363,1707555079092,2224.01,0.00023,2]
[313664364,1707555080052,239.30806929,0.00023,2]
[313664365,1707555080222,544.2,0.00023,2]
[313664366,1707555081162,500.0,0.00023,2]
[313664367,1707555082629,500.0,0.00023,2]
[313664368,1707555083019,500.0,0.00023,2]
[313664369,1707555083883,500.0,0.00023,2]
[313664370,1707555083912,1032.66,0.00023,2]
[313664371,1707555084549,500.0,0.00023,2]
[313664372,1707555085225,500.0,0.00023,2]
[313664373,1707555085569,500.0,0.00023,2]
[313664374,1707555086288,1216.45,0.00023,2]
[313664375,1707555088385,500.0,0.00023,2]
[313664376,1707555089147,635.86,0.00023,2]
[313664377,1707555089237,500.0,0.00023,2]
[313664378,1707555090527,500.0,0.00023,2]
[313664379,1707555092855,628.13060742,0.00023,2]
[313664380,1707555093632,832.05,0.00023,2]
[313664381,1707555094286,592.77,0.00023,2]
[313664382,1707555094351,1242.93,0.00023,2]
[313664383,1707555094834,500.0,0.00023,2]
[313664384,1707555096388,500.0,0.00023,2]
[313664385,1707555098607,500.0,0.00023,2]
[313664386,1707555099337,500.0,0.00023,2]
[313664387,1707555099603,500.0,0.00023,2]
[313664388,1707555101218,500.0,0.00023,2]
[313664389,1707555102464,500.0,0.00023,2]
[313664390,1707555102908,1860.77,0.00023,2]
[313664391,1707555103375,823.51,0.00023,2]
[313664392,1707555103624,671.67,0.00023,2]
[313664393,1707555103755,500.0,0.00023,2]
[313664394,1707555107859,500.0,0.00023,2]
[313664395,1707555109750,500.0,0.00023,2]
[313664396,1707555110448,500.0,0.00023,2]
[313664397,1707555112855,500.0,0.00023,2]
[313664398,1707555113185,500.0,0.00023,2]
[313664399,1707555114336,500.0,0.00023,2]
[313664400,1707555115273,2676.02,0.00023,2]
[313664401,1707555116008,500.0,0.00023,2]
[313664402,1707555116573,589.16980047,0.00023,2]
[313664403,1707555117449,500.0,0.00023,2]
[313664404,1707555118989,500.0,0.00023,2]
[313664405,1707555119087,2791.48,0.00023,2]
[313664406,1707555119861,500.0,0.00023,2]
[313664407,1707555120412,2947.59,0.00023,2]
[313664408,1707555120515,3109.03,0.00023,2]
[313664409,1707555121262,5712.49935369,0.0002286,2]
[313664410,1707555121507,4101.64,0.00023,2]
[313664411,1707555122684,4373.05,0.00023,2]
[313664412,1707555123031,1325.870319,0.0002275,2]
[313664413,1707555123311,842.08,0.00023,2]
[313664414,1707555123671,500.0,0.00023,2]
[313664415,1707555123887,500.0,0.00023,2]
[313664416,1707555124038,1187.057,0.00022901,2]
[313664417,1707555126787,181.86190116,0.00023,2]
[313664418,1707555126951,2113.05,0.00023,2]
[313664419,1707555128216,500.0,0.00023,2]
[313664420,1707555128247,1682.37,0.00023,2]
[313664421,1707555129820,21844.75,0.00023,2]
[313664422,1707555130273,878.85,0.00023,2]
[313664423,1707555130672,2348.5143,0.00022901,2]
[313664424,1707555131371,500.0,0.00023,2]
[313664425,1707555131700,503.2,0.00023,2]
[313664426,1707555131773,500.0,0.00023,2]
[313664427,1707555132545,606.18954016,0.00023,2]
[313664428,1707555133513,690.91,0.00023,2]
[313664429,1707555133688,1373.76,0.00023,2]
[313664430,1707555134391,500.0,0.00023,2]
[313664431,1707555134989,2848.16,0.00023,2]
[313664432,1707555135017,163.33,0.00022451,2]
[313664433,1707555135203,163.33,0.00022646,2]
[313664434,1707555135412,163.33,0.00022841,2]
[313664435,1707555136607,7885.5,0.00023,2]
[313664436,1707555138785,500.0,0.00023,2]
[313664437,1707555139091,500.0,0.00023,2]
[313664438,1707555140445,200.0,0.000228,8]
[313664439,1707555140475,500.0,0.00023,2]
[313664440,1707555140622,373.93971798,0.00023,2]
[313664441,1707555140654,3119.73,0.00023,2]
[313664442,1707555141414,500.0,0.00023,2]
[313664443,1707555142287,500.0,0.000229,8]
[313664444,1707555142417,500.0,0.00023,2]
[313664445,1707555142623,735.02,0.00023,2]
[313664446,1707555143437,672.57,0.00023,2]
[313664447,1707555143779,500.0,0.00023,2]
[313664448,1707555143981,543.67196582,0.00023,2]
[313664449,1707555144309,2143.56,0.00023,2]
[313664450,1707555144395,500.0,0.00023,2]
[313664451,1707555146900,744.24,0.00023,2]
[313664452,1707555146933,500.0,0.00023,2]
[313664453,1707555147482,500.0,0.00023,2]
[313664454,1707555147608,500.0,0.00023,2]
[313664455,1707555147912,500.0,0.00023,2]
[313664456,1707555148219,500.0,0.00023,2]
[313664457,1707555150229,16393.09,0.00023,2]
[313664458,1707555151886,566.11779257,0.00023,2]
[313664459,1707555151944,500.0,0.00023,2]
[313664460,1707555152111,2082.19,0.00023,2]
[313664461,1707555152138,3032.78,0.00023,2]
[313664462,1707555153424,500.0,0.00023,2]
[313664463,1707555153458,3144.48,0.00023,2]
[313664464,1707555153702,500.0,0.00023,2]
[313664465,1707555155591,500.0,0.00023,2]
[313664466,1707555155623,2029.76,0.00023,2]
[313664467,1707555156703,500.0,0.00023,2]
[313664468,1707555159193,500.0,0.00023,2]
[313664469,1707555159299,500.0,0.00023,2]
[313664470,1707555159604,500.0,0.00023,2]
[313664471,1707555160468,778.06,0.00023,2]
[313664472,1707555160809,1743.47,0.00023,2]
[313664473,1707555161143,500.0,0.00023,2]
[313664474,1707555161353,500.0,0.00023,2]
[313664475,1707555161383,500.0,0.00022901,2]
[313664476,1707555161472,6599.38,0.00023,2]
[313664477,1707555162250,2071.26,0.00023,2]
[313664478,1707555162440,500.0,0.00023,2]
[313664479,1707555163192,730.46,0.00023,2]
[313664480,1707555165892,500.0,0.00023,2]
[313664481,1707555165950,572.41238366,0.00023,2]
[313664482,1707555166377,500.0,0.00023,2]
[313664483,1707555166437,500.0,0.00023,2]
[313664484,1707555166472,500.0,0.00023,2]
[313664485,1707555167900,500.0,0.00023,2]
[313664486,1707555169465,573.59,0.00023,2]
[313664487,1707555170106,500.0,0.00023,2]
[313664488,1707555170659,500.0,0.00023,2]
[313664489,1707555172060,1104.63,0.00023,2]
[313664490,1707555172611,250.0,0.00022249,2]
[313664491,1707555172775,500.0,0.00023,2]
[313664492,1707555173260,500.0,0.00023,2]
[313664493,1707555173564,16228.56,0.00023,2]
[313664494,1707555175355,953.36,0.00023,2]
[313664495,1707555176422,500.0,0.00023,2]
[313664496,1707555176484,500.0,0.00023,2]
[313664497,1707555177933,500.0,0.00023,2]
[313664498,1707555178432,500.0,0.00023,2]
[313664499,1707555178688,740.13,0.00023,2]
[313664500,1707555179275,2086.14,0.00023,2]
[313664501,1707555180198,590.9,0.00023,2]
[313664502,1707555181470,2086.32,0.00023,2]
[313664503,1707555181657,1178.38,0.00023,2]
[313664504,1707555181753,500.0,0.00023,2]
[313664505,1707555182003,717.36,0.00023,2]
[313664506,1707555182134,500.0,0.00023,2]
[313664507,1707555184424,500.0,0.00023,2]
[313664508,1707555184611,713.42,0.00023,2]
[313664509,1707555184641,500.0,0.00023,2]
[313664510,1707555187777,521.52,0.00023,2]
[313664511,1707555187835,500.0,0.00023,2]
[313664512,1707555187881,1113.31,0.00023,2]
[313664513,1707555190252,500.0,0.00023,2]
[313664514,1707555190782,1395.97,0.00023,2]
[313664515,1707555191241,500.0,0.00023,2]
[313664516,1707555191841,500.0,0.00023,2]
[313664517,1707555192126,500.0,0.00023,2]
[313664518,1707555192193,2743.33,0.00023,2]
[313664519,1707555192450,164.43,0.0002226,2]
[313664520,1707555193218,620.15105657,0.00023,2]
[313664521,1707555193377,1001.54,0.00023,2]
[313664522,1707555193756,500.0,0.00023,2]
[313664523,1707555195494,500.0,0.00023,2]
[313664524,1707555195813,19478.75,0.00022246,2]
[313664525,1707555196562,609.37,0.00023,2]
[313664526,1707555198381,8012.76,0.00023,2]
[313664527,1707555199218,868.08,0.00023,2]
[313664528,1707555199698,584.29,0.00023,2]
[313664529,1707555200152,600.0,0.0002212,2]
[313664530,1707555200260,500.0,0.00023,2]
[313664531,1707555200529,1114.85,0.00023,2]
[313664532,1707555201127,500.0,0.00023,2]
[313664533,1707555201182,4815.24,0.00023,2]
[313664534,1707555201343,200.0,0.00022967,2]
[313664535,1707555201472,1121.23,0.00023,2]
[313664536,1707555202424,606.01,0.00023,2]
[313664537,1707555202768,500.0,0.00023,2]
[313664538,1707555203707,540.13605335,0.00023,2]
[313664539,1707555203809,500.0,0.00023,2]
[313664540,1707555204008,1429.56,0.00023,2]
[313664541,1707555204431,632.58,0.00023,2]
[313664542,1707555208765,3429.64,0.00023,2]
[313664543,1707555208813,500.0,0.00023,2]
[313664544,1707555209895,1969.32,0.00023,2]
[313664545,1707555210816,2006074.39789088,0.00023,2]
[313664546,1707555211477,652.97,0.00023,2]
[313664547,1707555211517,754.88,0.00023,2]
[313664548,1707555212463,3845.53,0.00023,2]
[313664549,1707555213062,2657.54,0.00023,2]
[313664550,1707555213425,810.73,0.00023,2]
[313664551,1707555213504,500.0,0.00023,2]
[313664552,1707555215113,500.0,0.00023,2]
[313664553,1707555215375,500.0,0.00023,2]
[313664554,1707555216430,500.0,0.00023,2]
[313664555,1707555216870,638.58,0.00023,2]
[313664556,1707555217659,500.0,0.00023,2]
[313664557,1707555219910,500.0,0.00023,2]
[313664558,1707555219966,316.39845434,0.00023,2]
[313664559,1707555220061,2602.67,0.00023,2]
[313664560,1707555220386,573.03,0.00023,2]
[313664561,1707555221187,5621.45,0.00023,2]
[313664562,1707555221633,500.0,0.00023,2]
[313664563,1707555222098,500.0,0.00023,2]
[313664564,1707555222204,500.0,0.00023,2]
[313664565,1707555224245,2297.98,0.00023,2]
[313664566,1707555224922,500.0,0.00023,2]
[313664567,1707555225636,500.0,0.00023,2]
[313664568,1707555226072,558.34,0.00023,2]
[313664569,1707555227170,500.0,0.00023,2]
[313664570,1707555227283,150.48,0.00023,2]
[313664571,1707555228102,961.56,0.00023,2]
[313664572,1707555228555,698.99,0.00023,2]
[313664573,1707555228631,500.0,0.00023,2]
[313664574,1707555230143,3108.8,0.00023,2]
[313664575,1707555230848,3930.74,0.00023,2]
[313664576,1707555231443,2482.83,0.00023,2]
[313664577,1707555231644,327.77810044,0.00023,2]
[313664578,1707555233571,2008358.38527746,0.00023,2]
[313664579,1707555234030,500.0,0.00023,2]
[313664580,1707555234706,500.0,0.00023,2]
[313664581,1707555235694,500.0,0.00023,2]
[313664582,1707555235725,500.0,0.00023,2]
[313664583,1707555237036,500.0,0.00023,2]
[313664584,1707555237374,500.0,0.00023,2]
[313664585,1707555237477,500.0,0.00023,2]
[313664586,1707555237849,500.0,0.00023,2]
[313664587,1707555238892,551.27429173,0.00023,2]
[313664588,1707555239609,3979.79,0.00023,2]
[313664589,1707555240504,908.28,0.00023,2]
[313664590,1707555240659,500.0,0.00023,2]
[313664591,1707555241731,500.0,0.00023,2]
[313664592,1707555242118,507.91,0.00023,2]
[313664593,1707555242481,385.60350094,0.00023,2]
[313664594,1707555242568,1316.52,0.00023,2]
[313664595,1707555243235,500.0,0.00023,2]
[313664596,1707555243445,2291.13,0.00023,2]
[313664597,1707555243479,2131.34,0.00023,2]
[313664598,1707555244143,500.0,0.00023,2]
[313664599,1707555244558,500.0,0.00023,2]
[313664600,1707555245783,681.66,0.00023,2]
[313664601,1707555245824,500.0,0.00023,2]
[313664602,1707555248537,500.0,0.00023,2]
[313664603,1707555249275,500.0,0.00023,2]
[313664604,1707555249347,500.0,0.00023,2]
[313664605,1707555250457,836.74,0.00023,2]
[313664606,1707555251389,6192.55,0.00023,2]
[313664607,1707555251991,644.55,0.00023,2]
[313664608,1707555252835,1498.74,0.00023,2]
[313664609,1707555252868,500.0,0.00023,2]
[313664610,1707555252979,500.0,0.00023,2]
[313664611,1707555254141,500.0,0.00023,2]
[313664612,1707555254717,500.0,0.00023,2]
[313664613,1707555255498,522.66,0.00023,2]
[313664614,1707555257013,3165.01,0.00023,2]
[313664615,1707555257916,2353.98,0.00023,2]
[313664616,1707555259206,500.0,0.00023,2]
[313664617,1707555260017,1000.0,0.00023,2]
[313664618,1707555263498,500.0,0.00023,2]
[313664619,1707555263621,500.0,0.00023,2]
[313664620,1707555263792,5870.09,0.00023,2]
[313664621,1707555265201,500.0,0.00023,2]
[313664622,1707555265449,500.0,0.00023,2]
[313664623,1707555265916,500.0,0.00023,2]
[313664624,1707555266053,766.65,0.00023,2]
[313664625,1707555267066,500.0,0.00023,2]
[313664626,1707555267961,2767.0,0.00022968,2]
[313664627,1707555268589,680.6,0.00023,2]
[313664628,1707555269524,500.0,0.00023,2]
[313664629,1707555269761,1792.23,0.00023,2]
[313664630,1707555270200,700.02,0.00023,2]
[313664631,1707555270464,1281.16,0.00023,2]
[313664632,1707555270495,989.63,0.00023,2]
[313664633,1707555271770,500.0,0.00023,2]
[313664634,1707555275024,500.0,0.00023,2]
[313664635,1707555275927,500.0,0.00023,2]
[313664636,1707555276055,500.0,0.00023,2]
[313664637,1707555278981,1058.6,0.00023,2]
[313664638,1707555279306,797.38,0.00023,2]
[313664639,1707555279437,1165.77,0.00023,2]
[313664640,1707555279794,500.0,0.00023,2]
[313664641,1707555281524,7438.26,0.00023,2]
[313664642,1707555282429,500.0,0.00023,2]
[313664643,1707555282457,500.0,0.00023,2]
[313664644,1707555283881,500.0,0.00023,2]
[313664645,1707555285919,500.0,0.00023,2]
[313664646,1707555286199,500.0,0.00023,2]
[313664647,1707555287268,500.0,0.00023,2]
[313664648,1707555287825,566.28,0.00023,2]
[313664649,1707555291376,190.57,0.00022159,2]
[313664650,1707555291880,2675.17,0.00023,2]
[313664651,1707555291912,3304.96,0.00023,2]
[313664652,1707555291942,500.0,0.00023,2]
[313664653,1707555292697,500.0,0.00023,2]
[313664654,1707555295235,500.0,0.00023,2]
[313664655,1707555295448,643.69,0.00023,2]
[313664656,1707555295753,586.50666787,0.00023,2]
[313664657,1707555297690,671.76,0.00023,2]
[313664658,1707555298224,500.0,0.00023,2]
[313664659,1707555300208,11671.64,0.00023,2]
[313664660,1707555300411,500.0,0.00023,2]
[313664661,1707555300676,1612.27,0.00023,2]
[313664662,1707555301124,500.0,0.00023,2]
[313664663,1707555301406,2564.52,0.00023,2]
[313664664,1707555301485,2629.02,0.00023,2]
[313664665,1707555303870,500.0,0.00023,2]
[313664666,1707555305033,500.0,0.00023,2]
[313664667,1707555305212,500.0,0.00023,2]
[313664668,1707555305971,500.0,0.00023,2]
[313664669,1707555306802,500.0,0.00023,2]
[313664670,1707555309249,500.0,0.00023,2]
[313664671,1707555311880,2979.48,0.00023,2]
[313664672,1707555312052,4614.61,0.00023,2]
[313664673,1707555312668,500.0,0.00023,2]
[313664674,1707555314079,2711.75,0.00023,2]
[313664675,1707555314672,614.67,0.00023,2]
[313664676,1707555314726,1178.68,0.00023,2]
[313664677,1707555314766,874.43,0.00023,2]
[313664678,1707555315243,200.39327457,0.00023,9]
[313664679,1707555318385,500.0,0.00023,2]
[313664680,1707555318521,842.23,0.00023,2]
[313664681,1707555319051,507.21,0.00023,2]
[313664682,1707555320498,1812.64683972,0.00023,2]
[313664683,1707555337422,964.4167976,0.00022168,2]
[313664684,1707555337447,964.4167976,0.00022168,2]
[313664685,1707555337471,71.1664048,0.00022168,2]
[313664686,1707555366772,200.0,0.0002215,2]
[313664691,1707555468229,692.01,0.0002212,2]
[313664692,1707555472686,1.2403928,0.00022121,2]
[313664693,1707555472710,267.4096072,0.00022121,2]
[313664694,1707555507363,218.33,0.00020149,2]
[313664695,1707555507565,218.33,0.00022413,2]
[313664696,1707555584826,163.33,0.00022223,2]
[313664697,1707555622392,97.0171904,0.00022048,2]
[313664698,1707555622418,152.9828096,0.00022048,2]
[313664699,1707555675751,2299.57779875,0.00021938,2]
[313664700,1707555846363,840.0,0.00021963,2]
[313664701,1707555948801,207.48,0.00020025,2]
[313664702,1707555949025,207.48,0.00022289,2]
[313664703,1707555961395,576.67,0.00021943,2]
[313664704,1707556108900,774.00067719,0.00022,2]
[313664710,1707556155002,158.29,0.00022064,2]
[313664711,1707556155208,158.29,0.00022294,2]
[313664732,1707556232283,-156.18545694,0.00022522,2]
[313664735,1707556232294,-280.70042105,0.00022523,2]
[313664737,1707556232303,-158.29,0.00022524,2]
[313664738,1707556232313,-6817.42305581,0.00022588,2]
[313664739,1707556232445,-4386.79514914,0.00022588,2]
[313664740,1707556232500,-995.89,0.00022588,2]
[313664741,1707556232513,-667.00911059,0.00022588,2]
[313664761,1707556240115,-390.83555484,0.00022522,2]
[313664762,1707556240166,-1565.58898442,0.00022522,2]
[313664763,1707556240176,-221.12781587,0.00022588,2]
[313664764,1707556240188,-324.33024351,0.00022588,2]
[313664765,1707556240200,-3395.54794444,0.00022588,2]
[313664766,1707556240223,-8868.18191338,0.00022588,2]
[313664767,1707556240234,-4510.25546344,0.00022589,2]
[313664768,1707556240245,-33513.28446182,0.00022589,2]
[313664769,1707556240254,-150.0,0.00022591,2]
[313664770,1707556240264,-200.0,0.000226,8]
[313664771,1707556240273,-500.0,0.000227,8]
[313664772,1707556240282,-158.29,0.00022754,2]
[313664773,1707556240292,-1889.27771131,0.00022788,2]
[313664774,1707556240302,-358.8085,0.00022797,2]
[313664775,1707556240312,-871.96400654,0.00022797,2]
[313664776,1707556240325,-462.2961555,0.00022797,2]
[313664777,1707556240343,-858.74623956,0.00022797,2]
[313664778,1707556240365,-279.83656,0.00022797,2]
[313664823,1707556240945,-95.7870384,0.00022797,2]
[313664824,1707556240955,-907.6839616,0.00022798,2]
[313664825,1707556240966,-470.2,0.00022798,2]
[313664826,1707556240979,-548.1,0.00022798,2]
[313664827,1707556240991,-347.96609508,0.00022798,2]
[313664828,1707556241003,-410.44886537,0.00022798,2]
[313664829,1707556241087,-885.04521573,0.00022798,2]
[313664830,1707556241099,-7474.78680611,0.00022798,2]
[313664832,1707556241112,-2828.01795911,0.00022798,2]
[313664835,1707556241129,-459.21118713,0.00022798,2]
[313664840,1707556241162,-500.0,0.00022798,2]
[313664848,1707556241235,-2203.4,0.00022798,2]
[313664850,1707556241247,-1048.582763,0.00022798,2]
[313664853,1707556241261,-500.4773228,0.00022798,2]
[313664855,1707556241274,-1037.16652407,0.00022798,2]
[313664857,1707556241284,-1000.0,0.00022798,2]
[313664859,1707556241294,-673.21863516,0.00022798,2]
[313664869,1707556241372,-292.18136484,0.00022798,2]
[313664871,1707556241382,-163.11834775,0.00022799,2]
[313664873,1707556241391,-499.99,0.00022799,2]
[313664875,1707556241401,-546.88713501,0.00022799,2]
[313664877,1707556241411,-700.0,0.000228,8]
[313664879,1707556241420,-166.43,0.00022808,2]
[313664881,1707556241429,-200.0,0.00022818,2]
[313664883,1707556241440,-200.0,0.00022846,2]
[313664885,1707556241450,-800.0,0.00022846,2]
[313664887,1707556241460,-163.11834771,0.00022849,2]
[313664889,1707556241469,-4076.17524073,0.0002286,2]
[313664891,1707556241480,-4130.2348,0.00022882,2]
[313664893,1707556241489,-161.14897117,0.00022888,2]
[313664895,1707556241499,-3672.72,0.00022897,2]
[313664897,1707556241508,-1117.19,0.00022897,2]
[313664899,1707556241521,-650.05,0.00022897,2]
[313664901,1707556241531,-500.0,0.00022897,2]
[313664904,1707556241541,-3008.92,0.00022897,2]
[313664906,1707556241551,-20934.56,0.00022897,2]
[313664908,1707556241560,-500.0,0.00022897,2]
[313664910,1707556241569,-500.0,0.00022897,2]
[313664912,1707556241579,-2598.76,0.00022897,2]
[313664914,1707556241589,-1421.06,0.00022897,2]
[313664916,1707556241599,-768.66,0.00022897,2]
[313664918,1707556241609,-500.0,0.00022897,2]
[313664920,1707556241618,-500.0,0.00022897,2]
[313664922,1707556241628,-10780.43,0.00022897,2]
[313664924,1707556241637,-500.0,0.00022897,2]
[313664926,1707556241647,-2025.01,0.00022897,2]
[313664928,1707556241657,-500.0,0.00022897,2]
[313664930,1707556241667,-500.0,0.00022897,2]
[313664932,1707556241677,-1024.06,0.00022897,2]
[313664934,1707556241687,-583.97,0.00022897,2]
[313664936,1707556241697,-500.0,0.00022897,2]
[313664938,1707556241706,-1945.18,0.00022897,2]
[313664940,1707556241717,-662.12,0.00022897,2]
[313664943,1707556241728,-757.74,0.00022897,2]
[313664945,1707556241739,-713.23,0.00022897,2]
[313664947,1707556241749,-4190.84,0.00022897,2]
[313664949,1707556241763,-687.47,0.00022897,2]
[313664951,1707556241774,-745.64,0.00022897,2]
[313664953,1707556241787,-3766.96,0.00022897,2]
[313664955,1707556241798,-500.0,0.00022897,2]
[313664957,1707556241808,-549.69,0.00022897,2]
[313664959,1707556241818,-704.39,0.00022897,2]
[313664961,1707556241827,-7678.9,0.00022897,2]
[313664963,1707556241839,-2661.2,0.00022897,2]
[313664965,1707556241850,-1995.43,0.00022897,2]
[313664968,1707556241862,-500.0,0.00022897,2]
[313664970,1707556241871,-1261.67,0.00022897,2]
[313664972,1707556241881,-611.97,0.00022897,2]
[313664974,1707556241891,-959.81,0.00022897,2]
[313664976,1707556241901,-617.69,0.00022897,2]
[313664978,1707556241910,-580.76,0.00022897,2]
[313664980,1707556241920,-15552.37,0.00022897,2]
[313664982,1707556241929,-535.08,0.00022897,2]
[313664984,1707556241940,-625.76,0.00022897,2]
[313664986,1707556241950,-500.0,0.00022897,2]
[313664988,1707556241959,-670.86,0.00022897,2]
[313664990,1707556241969,-500.0,0.00022897,2]
[313664992,1707556241980,-2494.22,0.00022897,2]
[313664994,1707556241990,-1014.49,0.00022897,2]
[313664996,1707556242000,-573.34,0.00022897,2]
[313664998,1707556242009,-500.0,0.00022897,2]
[313665001,1707556242019,-2379.38,0.00022897,2]
[313665003,1707556242030,-3196.29,0.00022897,2]
[313665005,1707556242039,-1068.39,0.00022897,2]
[313665007,1707556242048,-542.68,0.00022897,2]
[313665009,1707556242058,-870.43,0.00022897,2]
[313665011,1707556242067,-687.33,0.00022897,2]
[313665013,1707556242077,-2546.81,0.00022897,2]
[313665015,1707556242087,-2519.48,0.00022897,2]
[313665017,1707556242096,-801.87,0.00022897,2]
[313665019,1707556242107,-500.0,0.00022897,2]
[313665021,1707556242117,-500.0,0.00022897,2]
[313665023,1707556242126,-7136.11,0.00022897,2]
[313665025,1707556242136,-4422.33,0.00022897,2]
[313665027,1707556242146,-500.0,0.00022897,2]
[313665029,1707556242155,-921.5,0.00022897,2]
[313665031,1707556242165,-561.79,0.00022897,2]
[313665033,1707556242174,-3167.25,0.00022897,2]
[313665035,1707556242183,-3685.3,0.00022897,2]
[313665037,1707556242193,-510.45,0.00022897,2]
[313665040,1707556242203,-479733.03171947,0.00022898,2]
[313665042,1707556242213,-163.11834771,0.00022899,2]
[313665044,1707556242222,-3017.52799565,0.00022899,2]
[313665045,1707556242231,-566.0855557,0.00022899,2]
[313665048,1707556242241,-153.50009634,0.000229,2]